[Event "Serbian League Women 2024"]
[Site "Bajina Basta"]
[Date "2024.09.28"]
[Round "2.9"]
[White "Muetsch, Annmarie"]
[Black "Osmak, Yuliia"]
[Result "0-1"]
[ECO "D26"]
[WhiteElo "2290"]
[BlackElo "2471"]
[Annotator "TA"]
[PlyCount "94"]
[EventDate "2024.09.26"]
[EventType "team-tourn"]
[EventCountry "SRB"]
[SourceTitle "playchess.com"]
[Source "ChessBase"]
[SourceQuality "1"]
[TimeControl "40/5400+30:1800+30"]

{[%evp 9,94,30,31,8,5,14,21,0,0,0,7,0,5,0,0,-13,-11,-16,-16,-16,0,0,16,-38,-51,-77,-70,-94,-84,-110,-120,-135,-70,-168,-152,-168,-161,-226,-196,-148,-239,-264,-250,-249,-248,-291,-291,-489,-470,-467,-458,-454,-392,-636,-622,-615,-578,-612,-549,-609,-582,-559,-519,-500,-480,-584,-1366,-814,-837,-1511,-1438,-1497,-1384,-29975,-29976,-29976,-29977,-29977,-29977,-29981,-29980,-29979,-29980,-29983,-29984,-29984,-29984]} 1. d4 {[%emt 0:00:10]} d5 {[%emt 0:00:09]} 2. c4 {[%emt 0:00:15]} dxc4 {[%emt 0:00:31]} 3. Nf3 {[%emt 0:00:19]} Nf6 {[%emt 0:00:14]} 4. e3 {[%emt 0:00:16]} e6 {[%emt 0:00:10]} 5. Bxc4 {[%emt 0:00:48]} a6 {[%emt 0:00:10]} 6. Be2 {[%emt 0:01:35]} Nbd7 {[%emt 0:03:03]} 7. O-O {[%emt 0:00:42]} b6 {[%emt 0:00:34]} 8. Ne5 {[%emt 0:05:10] The position is equal.} Nxe5 {[%emt 0:14:26]} 9. dxe5 {[%emt 0:00:07]} Qxd1 {[%emt 0:00:03]} 10. Rxd1 {[%emt 0:00:20]} Nd5 {[%emt 0:00:14]} 11. Bf3 {[%emt 0:07:39]} Bb7 {[%emt 0:00:21]} 12. b3 {[%emt 0:27:12]} O-O-O {[%emt 0:02:14]} 13. Bb2 {[%emt 0:01:09]} Be7 {[%emt 0:04:22]} 14. a3 {[%emt 0:03:07]} b5 {[%emt 0:19:57]} 15. Nd2 {[%emt 0:03:19]} Nb6 {[%emt 0:00:30]} 16. Bxb7+ {[%emt 0:02:02]} (16. Be2 $11) 16... Kxb7 $15 {[%emt 0:00:04]} 17. Ne4 {[%emt 0:00:56]} Rxd1+ {[%emt 0:12:41]} 18. Rxd1 {[%emt 0:00:08]} a5 {[%emt 0:00:12]} 19. Nc3 {[%emt 0:07:16] [#]} Ka6 $1 {[%emt 0:00:49]} 20. Kf1 {[%emt 0:02:49]} Rd8 {[%emt 0:04:16]} (20... c5 $17 {Hoping for ...c4.} 21. Ne4 Rb8) 21. Rd4 {[%emt 0:07:32]} (21. Ke2 $15) 21... Rxd4 $19 {[%emt 0:11:17]} 22. exd4 {[%emt 0:00:06] [#]} a4 $1 {[%emt 0:00:25]} 23. bxa4 {[%emt 0:07:53]} (23. b4 $142) 23... Nxa4 {[%emt 0:08:41]} ({Resist} 23... bxa4 24. Ke2 $17) 24. Nxa4 {[%emt 0:00:07]} bxa4 {[%emt 0:00:03][%mdl 4096] Endgame. KB-KB} 25. Ke2 {[%emt 0:00:14]} Kb5 {[%emt 0:00:21] aiming for ...Kc4.} 26. Kd3 {[%emt 0:00:06]} h5 {[%emt 0:03:40]} 27. f4 {[%emt 0:01:58]} g6 {[%emt 0:01:02]} 28. h3 $2 {[%emt 0:03:18]} (28. Bc1 {was necessary.}) 28... h4 {[%emt 0:07:19]} 29. Bc1 {[%emt 0:00:48]} c6 {[%emt 0:00:31]} 30. Bb2 {[%emt 0:00:59]} c5 {[%emt 0:02:34]} 31. dxc5 $2 {[%emt 0:00:40]} (31. Bc1) 31... Kxc5 {[%emt 0:00:07]} (31... Bxc5 $2 32. Bc1 $19) 32. Bd4+ {[%emt 0:04:04]} Kd5 {[%emt 0:00:11]} 33. Bb2 {[%emt 0:04:55]} Bc5 {[%emt 0:00:21]} 34. Bc1 {[%emt 0:00:39]} Bd4 {[%emt 0:00:14] Prevents Bb2.} 35. Bd2 {[%emt 0:01:19]} Bb2 {[%emt 0:00:10]} 36. Bb4 {[%emt 0:01:01]} Bc1 {[%emt 0:00:18]} 37. Be7 {[%emt 0:00:34]} Bxf4 {[%emt 0:00:17]} 38. Bxh4 {[%emt 0:00:06]} Bxe5 {[%emt 0:00:21]} 39. Bg5 {[%emt 0:01:20]} Bb2 {[%emt 0:04:17]} 40. Be7 {[%emt 0:00:16]} f5 {[%emt 0:01:13]} 41. g4 {[%emt 0:30:47]} fxg4 {[%emt 0:31:24] Black mates.} 42. hxg4 {[%emt 0:00:06]} e5 {[%emt 0:00:08]} 43. Bb4 {[%emt 0:02:26]} e4+ {[%emt 0:00:28]} 44. Ke2 {[%emt 0:00:19]} Bd4 {[%emt 0:00:15]} 45. Bd2 {[%emt 0:01:20]} Kc4 {[%emt 0:00:09]} 46. g5 {[%emt 0:00:37]} Bc5 {[%emt 0:00:27]} 47. Bc1 {[%emt 0:00:39]} Kb3 {[%emt 0:00:10] Weighted Error Value: White=0.56/Black=0.06 (flawless) .  Mistake:       	White=5     	Black=1      Inaccurate:     	White=2     	---        OK:         	White=9     	Black=14     Best:        	White=1     	Black=4      Strong:       	---       	Black=2} 0-1

[Event "Serbian League Women 2024"]
[Site "Bajina Basta"]
[Date "2024.09.28"]
[Round "2.10"]
[White "Roebers, Eline"]
[Black "Brunello, Marina"]
[Result "1/2-1/2"]
[ECO "B12"]
[WhiteElo "2340"]
[BlackElo "2348"]
[Annotator "ChessBase"]
[PlyCount "30"]
[EventDate "2024.09.26"]
[EventType "team-tourn"]
[EventCountry "SRB"]
[SourceTitle "playchess.com"]
[Source "ChessBase"]
[SourceQuality "1"]
[TimeControl "40/5400+30:1800+30"]

1. e4 {[%emt 0:00:03]} c6 {[%emt 0:00:06]} 2. d4 {[%emt 0:00:04]} d5 {[%emt 0:00:05]} 3. e5 {[%emt 0:00:04]} Bf5 {[%emt 0:00:04]} 4. Nf3 {[%emt 0:00:22]} e6 {[%emt 0:00:14]} 5. Be2 {[%emt 0:00:04]} Nd7 {[%emt 0:00:20]} 6. O-O {[%emt 0:00:05]} a5 {[%emt 0:00:06]} 7. a4 {[%emt 0:00:06]} f6 {[%emt 0:00:06]} 8. Bd3 {[%emt 0:05:56]} fxe5 {[%emt 0:07:42]} 9. Nxe5 {[%emt 0:08:05]} Ngf6 {[%emt 0:00:33]} 10. Re1 {[%emt 0:05:24]} Be7 {[%emt 0:02:46]} 11. Nd2 {[%emt 0:24:53]} O-O {[%emt 0:07:51]} 12. Ndf3 {[%emt 0:00:44]} Nxe5 {[%emt 0:05:25]} 13. Nxe5 {[%emt 0:01:45]} Bd6 {[%emt 0:10:28]} 14. f3 {[%emt 0:13:36]} Nd7 {[%emt 0:03:10]} 15. g3 {[%emt 0:12:13]} Nxe5 {[%emt 0:12:25]} 1/2-1/2

[Event "Serbian League Women 2024"]
[Site "Bajina Basta"]
[Date "2024.09.28"]
[Round "2.11"]
[White "Mehmed, Elif"]
[Black "Maksimovic, Suzana"]
[Result "1-0"]
[ECO "B31"]
[WhiteElo "2228"]
[BlackElo "2052"]
[Annotator "ChessBase"]
[PlyCount "45"]
[EventDate "2024.09.26"]
[EventType "team-tourn"]
[EventCountry "SRB"]
[SourceTitle "playchess.com"]
[Source "ChessBase"]
[SourceQuality "1"]
[TimeControl "40/5400+30:1800+30"]

1. e4 {[%emt 0:00:24]} c5 {[%emt 0:00:11]} 2. Nf3 {[%emt 0:00:08]} Nc6 {[%emt 0:00:25]} 3. Bb5 {[%emt 0:00:05]} g6 {[%emt 0:01:07]} 4. O-O {[%emt 0:00:19]} Bg7 {[%emt 0:00:40]} 5. c3 {[%emt 0:00:11]} Nf6 {[%emt 0:00:28]} 6. Re1 {[%emt 0:00:13]} O-O {[%emt 0:03:16]} 7. d4 {[%emt 0:00:08]} cxd4 {[%emt 0:02:41]} 8. cxd4 {[%emt 0:00:06]} d5 {[%emt 0:00:08]} 9. e5 {[%emt 0:00:06]} Ne4 {[%emt 0:00:37]} 10. Bxc6 {[%emt 0:00:12]} bxc6 {[%emt 0:00:06]} 11. Be3 {[%emt 0:00:07]} Rb8 {[%emt 0:09:58]} 12. Qc1 {[%emt 0:01:19]} f6 {[%emt 0:00:38]} 13. Nc3 {[%emt 0:02:39]} Bg4 {[%emt 0:06:19]} 14. Nd2 {[%emt 0:22:48]} Nxd2 {[%emt 0:01:57]} 15. Qxd2 {[%emt 0:00:14]} fxe5 {[%emt 0:10:06]} 16. dxe5 {[%emt 0:00:11]} Rb7 {[%emt 0:21:44]} 17. Na4 {[%emt 0:19:11]} d4 {[%emt 0:05:19]} 18. Bg5 {[%emt 0:04:20]} Qd5 {[%emt 0:02:48]} 19. Rac1 {[%emt 0:01:49]} Qxa2 {[%emt 0:01:09]} 20. Qxd4 {[%emt 0:01:24]} Bf5 {[%emt 0:04:36]} 21. Nc5 {[%emt 0:06:38]} Rxb2 {[%emt 0:08:51]} 22. Ra1 {[%emt 0:00:26]} Rd2 {[%emt 0:00:13]} 23. Bxd2 {[%emt 0:00:45]} 1-0

[Event "Serbian League Women 2024"]
[Site "Bajina Basta"]
[Date "2024.09.28"]
[Round "2.12"]
[White "Tomin, Ksenija"]
[Black "Manakova, Maria"]
[Result "0-1"]
[ECO "B22"]
[WhiteElo "2039"]
[BlackElo "2185"]
[Annotator "ChessBase"]
[PlyCount "92"]
[EventDate "2024.09.26"]
[EventType "team-tourn"]
[EventCountry "SRB"]
[SourceTitle "playchess.com"]
[Source "ChessBase"]
[SourceQuality "1"]
[TimeControl "40/5400+30:1800+30"]

1. e4 {[%emt 0:00:04]} c5 {[%emt 0:00:06]} 2. Nf3 {[%emt 0:00:15]} Nc6 {[%emt 0:00:04]} 3. c3 {[%emt 0:00:39]} d5 {[%emt 0:00:49]} 4. exd5 {[%emt 0:00:25]} Qxd5 {[%emt 0:00:04]} 5. Na3 {[%emt 0:00:43]} e6 {[%emt 0:01:25]} 6. Be2 {[%emt 0:01:14]} Nf6 {[%emt 0:00:11]} 7. d3 {[%emt 0:01:32]} Be7 {[%emt 0:01:23]} 8. O-O {[%emt 0:02:07]} O-O {[%emt 0:00:23]} 9. Nc2 {[%emt 0:06:20]} e5 {[%emt 0:03:13]} 10. h3 {[%emt 0:04:21]} Qd8 {[%emt 0:04:47]} 11. Re1 {[%emt 0:06:00]} Nd5 {[%emt 0:02:23]} 12. Bf1 {[%emt 0:02:55]} Qc7 {[%emt 0:00:13]} 13. Na3 {[%emt 0:11:10]} a6 {[%emt 0:22:49]} 14. Nc4 {[%emt 0:05:13]} f6 {[%emt 0:00:23]} 15. a4 {[%emt 0:01:08]} Be6 {[%emt 0:08:20]} 16. a5 {[%emt 0:10:37]} Rad8 {[%emt 0:01:15]} 17. Qa4 {[%emt 0:01:36]} Bf7 {[%emt 0:01:49]} 18. Bd2 {[%emt 0:06:56]} Rfe8 {[%emt 0:00:37]} 19. Be2 {[%emt 0:05:39]} Bf8 {[%emt 0:05:52]} 20. Bd1 {[%emt 0:05:00]} Kh8 {[%emt 0:01:45]} 21. Bb3 {[%emt 0:11:01]} Bg6 {[%emt 0:00:52]} 22. Qa2 {[%emt 0:04:15]} Nde7 {[%emt 0:03:03]} 23. Be3 {[%emt 0:04:04]} Nf5 {[%emt 0:02:34]} 24. Bc2 {[%emt 0:01:48]} Nxe3 {[%emt 0:09:20]} 25. Rxe3 {[%emt 0:00:34]} Ne7 {[%emt 0:00:51]} 26. Ba4 {[%emt 0:01:33]} Nc6 {[%emt 0:01:47]} 27. Rd1 {[%emt 0:01:10]} Bf7 {[%emt 0:02:44]} 28. Qb1 {[%emt 0:01:40]} e4 {[%emt 0:03:17]} 29. Nfd2 {[%emt 0:02:54]} exd3 {[%emt 0:00:50]} 30. Rxe8 {[%emt 0:00:31]} Bxe8 {[%emt 0:00:49]} 31. Nf3 {[%emt 0:00:35]} Bg6 {[%emt 0:05:19]} 32. Nh4 {[%emt 0:00:55]} Bf7 {[%emt 0:00:14]} 33. Bxc6 {[%emt 0:01:12]} Qxc6 {[%emt 0:04:33]} 34. Ne3 {[%emt 0:00:39]} c4 {[%emt 0:01:54]} 35. Nhf5 {[%emt 0:00:31]} Qc7 {[%emt 0:01:12]} 36. Qa2 {[%emt 0:00:31]} g6 {[%emt 0:01:28]} 37. Ng3 {[%emt 0:00:26]} f5 {[%emt 0:00:25]} 38. Nef1 {[%emt 0:00:30]} Rd5 {[%emt 0:03:31]} 39. b4 {[%emt 0:00:32]} Bg7 {[%emt 0:03:10]} 40. Qd2 {[%emt 0:00:25]} Qe5 {[%emt 0:01:15]} 41. Rc1 {[%emt 0:30:39]} f4 {[%emt 0:30:48]} 42. Re1 {[%emt 0:00:00]} Qxc3 {[%emt 0:00:00]} 43. Ne4 {[%emt 0:00:00]} Qxd2 {[%emt 0:00:00]} 44. Nfxd2 {[%emt 0:00:00]} c3 {[%emt 0:00:00]} 45. Nb3 {[%emt 0:00:00]} d2 {[%emt 0:00:00]} 46. Rd1 {[%emt 0:00:00]} Re5 {[%emt 0:00:00]} 0-1

[Event "Serbian League Women 2024"]
[Site "Bajina Basta"]
[Date "2024.09.28"]
[Round "2.13"]
[White "Unuk, Laura"]
[Black "Pogorelskikh, Sofia"]
[Result "0-1"]
[ECO "D78"]
[WhiteElo "2316"]
[BlackElo "2176"]
[Annotator "ChessBase"]
[PlyCount "108"]
[EventDate "2024.09.26"]
[EventType "team-tourn"]
[EventCountry "SRB"]
[SourceTitle "playchess.com"]
[Source "ChessBase"]
[SourceQuality "1"]
[TimeControl "40/5400+30:1800+30"]

1. d4 {[%emt 0:00:05]} d5 {[%emt 0:00:12]} 2. Nf3 {[%emt 0:00:22]} Nf6 {[%emt 0:00:21]} 3. g3 {[%emt 0:01:03]} g6 {[%emt 0:00:24]} 4. Bg2 {[%emt 0:00:28]} Bg7 {[%emt 0:00:13]} 5. c4 {[%emt 0:02:16]} c6 {[%emt 0:00:19]} 6. O-O {[%emt 0:00:45]} O-O {[%emt 0:00:38]} 7. a4 {[%emt 0:00:22]} Be6 {[%emt 0:03:18]} 8. Nc3 {[%emt 0:03:52]} dxc4 {[%emt 0:03:58]} 9. e4 {[%emt 0:00:54]} Na6 {[%emt 0:06:40]} 10. h3 {[%emt 0:13:18]} Nb4 {[%emt 0:05:57]} 11. Be3 {[%emt 0:01:06]} a5 {[%emt 0:04:38]} 12. Qe2 {[%emt 0:07:48]} Ne8 {[%emt 0:08:42]} 13. Rad1 {[%emt 0:10:52]} Nd6 {[%emt 0:08:57]} 14. Ng5 {[%emt 0:06:51]} Bc8 {[%emt 0:04:56]} 15. f4 {[%emt 0:01:13]} f6 {[%emt 0:10:25]} 16. Nf3 {[%emt 0:01:05]} Be6 {[%emt 0:02:26]} 17. g4 {[%emt 0:04:12]} Kh8 {[%emt 0:03:05]} 18. Nd2 {[%emt 0:22:54]} Qe8 {[%emt 0:09:48]} 19. e5 {[%emt 0:02:55]} Nc8 {[%emt 0:03:35]} 20. Nxc4 {[%emt 0:02:57]} Qf7 {[%emt 0:02:00]} 21. Nd2 {[%emt 0:04:34]} f5 {[%emt 0:03:08]} 22. gxf5 {[%emt 0:01:32]} Bxf5 {[%emt 0:04:40]} 23. Nde4 {[%emt 0:01:39]} Nb6 {[%emt 0:01:13]} 24. Nc5 {[%emt 0:01:29]} Qc4 {[%emt 0:01:37]} 25. Qd2 {[%emt 0:02:48]} Qf7 {[%emt 0:02:15]} 26. b3 {[%emt 0:04:47]} N6d5 {[%emt 0:02:29]} 27. Nxb7 {[%emt 0:01:12]} Nxe3 {[%emt 0:01:41]} 28. Qxe3 {[%emt 0:00:03]} Qxb3 {[%emt 0:01:46]} 29. Nc5 {[%emt 0:00:12]} Qc4 {[%emt 0:00:27]} 30. N3e4 {[%emt 0:00:51]} Nd5 {[%emt 0:00:23]} 31. Qg3 {[%emt 0:00:40]} Rab8 {[%emt 0:01:25]} 32. Ng5 {[%emt 0:00:43]} Nc3 {[%emt 0:01:01]} 33. Qh4 {[%emt 0:00:20]} h6 {[%emt 0:00:13]} 34. Rd2 {[%emt 0:00:46]} Ne2+ {[%emt 0:00:50]} 35. Kh2 {[%emt 0:00:31]} Nxd4 {[%emt 0:00:22]} 36. Nge4 {[%emt 0:00:28]} Qxf1 {[%emt 0:01:01]} 37. Rxd4 {[%emt 0:00:31]} Rb2 {[%emt 0:01:15]} 38. Rd2 {[%emt 0:00:32]} Rxd2 {[%emt 0:00:31]} 39. Nxd2 {[%emt 0:00:01]} Qe2 {[%emt 0:01:47]} 40. Ndb3 {[%emt 0:00:58]} g5 {[%emt 0:01:09]} 41. fxg5 {[%emt 0:17:19]} Bxe5+ {[%emt 0:01:49]} 42. Kg1 {[%emt 0:00:10]} Qd1+ {[%emt 0:00:35]} 43. Bf1 {[%emt 0:00:05]} Bh7 {[%emt 0:01:07]} 44. Qc4 {[%emt 0:00:24]} Qf3 {[%emt 0:06:58]} 45. Qe2 {[%emt 0:05:52]} Qg3+ {[%emt 0:00:22]} 46. Qg2 {[%emt 0:00:17]} Qe3+ {[%emt 0:00:16]} 47. Kh1 {[%emt 0:00:05]} Bg8 {[%emt 0:01:14]} 48. Nd2 {[%emt 0:05:32]} Bd5 {[%emt 0:00:43]} 49. Nce4 {[%emt 0:00:41]} Bxe4 {[%emt 0:01:08]} 50. Nxe4 {[%emt 0:00:15]} Rxf1+ {[%emt 0:00:25]} 51. Qxf1 {[%emt 0:00:04]} Qxe4+ {[%emt 0:00:07]} 52. Kg1 {[%emt 0:00:03]} Qd4+ {[%emt 0:01:01]} 53. Kg2 {[%emt 0:02:10]} Qd2+ {[%emt 0:00:12]} 54. Kf3 {[%emt 0:00:37]} Qf4+ {[%emt 0:00:08]} 0-1

[Event "Serbian League Women 2024"]
[Site "Bajina Basta"]
[Date "2024.09.28"]
[Round "2.14"]
[White "Zherebtsova, Alexandra"]
[Black "Lach, Aleksandra"]
[Result "0-1"]
[ECO "A91"]
[WhiteElo "2239"]
[BlackElo "2278"]
[Annotator "ChessBase"]
[PlyCount "104"]
[EventDate "2024.09.26"]
[EventType "team-tourn"]
[EventCountry "SRB"]
[SourceTitle "playchess.com"]
[Source "ChessBase"]
[SourceQuality "1"]
[TimeControl "40/5400+30:1800+30"]

1. d4 {[%emt 0:00:02]} e6 {[%emt 0:00:17]} 2. g3 {[%emt 0:06:33]} f5 {[%emt 0:00:58]} 3. Bg2 {[%emt 0:00:38]} Nf6 {[%emt 0:00:11]} 4. c4 {[%emt 0:00:24]} Be7 {[%emt 0:04:33]} 5. Nc3 {[%emt 0:00:20]} O-O {[%emt 0:03:15]} 6. Nh3 {[%emt 0:03:07]} d6 {[%emt 0:02:30]} 7. e4 {[%emt 0:16:15]} fxe4 {[%emt 0:17:50]} 8. Ng5 {[%emt 0:11:56]} h6 {[%emt 0:25:37]} 9. Ngxe4 {[%emt 0:00:47]} c6 {[%emt 0:04:33]} 10. O-O {[%emt 0:01:59]} d5 {[%emt 0:03:46]} 11. Nd2 {[%emt 0:10:40]} Nh7 {[%emt 0:11:58]} 12. Nf3 {[%emt 0:03:59]} Bf6 {[%emt 0:00:35]} 13. Qe2 {[%emt 0:02:45]} Kh8 {[%emt 0:03:47]} 14. Bf4 {[%emt 0:02:44]} Nd7 {[%emt 0:01:56]} 15. Rfe1 {[%emt 0:05:39]} Nb6 {[%emt 0:04:14]} 16. c5 {[%emt 0:02:07]} Nd7 {[%emt 0:00:06]} 17. Bd6 {[%emt 0:03:48]} Re8 {[%emt 0:02:37]} 18. Ne5 {[%emt 0:02:34]} Bxe5 {[%emt 0:01:11]} 19. dxe5 {[%emt 0:00:24]} b6 {[%emt 0:01:59]} 20. b4 {[%emt 0:01:33]} bxc5 {[%emt 0:02:23]} 21. bxc5 {[%emt 0:00:08]} Qa5 {[%emt 0:00:25]} 22. Qe3 {[%emt 0:06:06]} Ba6 {[%emt 0:00:11]} 23. f4 {[%emt 0:02:23]} Nhf8 {[%emt 0:04:04]} 24. Rac1 {[%emt 0:04:30]} Ng6 {[%emt 0:01:22]} 25. Bh3 {[%emt 0:01:18]} Ndf8 {[%emt 0:00:16]} 26. g4 {[%emt 0:05:29]} Qb4 {[%emt 0:00:42]} 27. f5 {[%emt 0:00:31]} exf5 {[%emt 0:01:29]} 28. gxf5 {[%emt 0:00:24]} Nh4 {[%emt 0:01:00]} 29. a3 {[%emt 0:03:24]} Qd4 {[%emt 0:00:32]} 30. Kf2 {[%emt 0:01:49]} Qxe3+ {[%emt 0:00:24]} 31. Kxe3 {[%emt 0:00:02]} Nh7 {[%emt 0:00:30]} 32. Kf4 {[%emt 0:01:26]} Ng5 {[%emt 0:00:11]} 33. Bf1 {[%emt 0:00:34]} Bc8 {[%emt 0:00:37]} 34. e6 {[%emt 0:00:33]} Ngf3 {[%emt 0:00:46]} 35. Be5 {[%emt 0:00:36]} Nxe1 {[%emt 0:00:34]} 36. Rxe1 {[%emt 0:00:01]} Rf8 {[%emt 0:00:16]} 37. e7 {[%emt 0:00:43]} Ng6+ {[%emt 0:00:34]} 38. Kg3 {[%emt 0:00:17]} Nxe7 {[%emt 0:00:02]} 39. Bxg7+ {[%emt 0:00:58]} Kxg7 {[%emt 0:00:01]} 40. Rxe7+ {[%emt 0:00:04]} Rf7 {[%emt 0:01:36]} 41. Re8 {[%emt 0:30:14]} Bb7 {[%emt 0:03:10]} 42. Re5 {[%emt 0:00:00]} Rg8 {[%emt 0:06:27]} 43. Kf4 {[%emt 0:00:00]} Bc8 {[%emt 0:05:52]} 44. Bd3 {[%emt 0:00:00]} Kf6 {[%emt 0:01:40]} 45. h3 {[%emt 0:00:00]} Re7 {[%emt 0:01:22]} 46. Rxe7 {[%emt 0:00:00]} Kxe7 {[%emt 0:00:02]} 47. Ne2 {[%emt 0:00:00]} Kf6 {[%emt 0:02:40]} 48. Ng3 {[%emt 0:00:00]} Re8 {[%emt 0:03:15]} 49. Nh5+ {[%emt 0:00:00]} Kf7 {[%emt 0:00:01]} 50. Kg4 {[%emt 0:00:00]} Re3 {[%emt 0:00:46]} 51. Nf4 {[%emt 0:00:00]} Kf6 {[%emt 0:00:27]} 52. Nh5+ {[%emt 0:00:00]} Ke5 {[%emt 0:00:12]} 0-1

[Event "Serbian League Women 2024"]
[Site "Bajina Basta"]
[Date "2024.09.28"]
[Round "2.15"]
[White "Bojicic, Andjela"]
[Black "Ibrahimova, Sabina"]
[Result "1/2-1/2"]
[ECO "E92"]
[WhiteElo "2071"]
[BlackElo "2199"]
[Annotator "ChessBase"]
[PlyCount "79"]
[EventDate "2024.09.26"]
[EventType "team-tourn"]
[EventCountry "SRB"]
[SourceTitle "playchess.com"]
[Source "ChessBase"]
[SourceQuality "1"]
[TimeControl "40/5400+30:1800+30"]

1. d4 {[%emt 0:00:04]} Nf6 {[%emt 0:00:45]} 2. c4 {[%emt 0:00:05]} g6 {[%emt 0:00:05]} 3. Nc3 {[%emt 0:00:03]} Bg7 {[%emt 0:00:05]} 4. e4 {[%emt 0:00:04]} d6 {[%emt 0:00:13]} 5. h3 {[%emt 0:00:23]} O-O {[%emt 0:00:23]} 6. Be3 {[%emt 0:00:35]} Nbd7 {[%emt 0:01:22]} 7. Nf3 {[%emt 0:00:09]} e5 {[%emt 0:02:54]} 8. d5 {[%emt 0:00:58]} Nc5 {[%emt 0:02:16]} 9. Nd2 {[%emt 0:00:51]} a5 {[%emt 0:01:56]} 10. g4 {[%emt 0:06:03]} c6 {[%emt 0:03:34]} 11. Be2 {[%emt 0:03:30]} a4 {[%emt 0:03:41]} 12. g5 {[%emt 0:06:06]} Nfd7 {[%emt 0:03:45]} 13. h4 {[%emt 0:02:49]} Qa5 {[%emt 0:04:55]} 14. a3 {[%emt 0:06:13]} cxd5 {[%emt 0:04:37]} 15. cxd5 {[%emt 0:00:50]} b5 {[%emt 0:07:02]} 16. Kf1 {[%emt 0:15:13]} Ba6 {[%emt 0:07:10]} 17. Na2 {[%emt 0:02:56]} f5 {[%emt 0:13:13]} 18. Nb4 {[%emt 0:06:47]} Bb7 {[%emt 0:05:51]} 19. h5 {[%emt 0:46:21]} Rae8 {[%emt 0:07:52]} 20. hxg6 {[%emt 0:00:00]} hxg6 {[%emt 0:00:07]} 21. exf5 {[%emt 0:00:00]} Rxf5 {[%emt 0:00:55]} 22. Bg4 {[%emt 0:00:00]} Rf7 {[%emt 0:03:23]} 23. Qc2 {[%emt 0:00:00]} e4 {[%emt 0:10:52]} 24. Bxd7 {[%emt 0:00:00]} Rxd7 {[%emt 0:00:37]} 25. Nc6 {[%emt 0:00:00]} Bxc6 {[%emt 0:06:01]} 26. dxc6 {[%emt 0:00:00]} Rde7 {[%emt 0:00:17]} 27. Rd1 {[%emt 0:00:00]} Qc7 {[%emt 0:05:33]} 28. b4 {[%emt 0:00:00]} axb3 {[%emt 0:02:44]} 29. Nxb3 {[%emt 0:00:00]} Qxc6 {[%emt 0:00:49]} 30. Nxc5 {[%emt 0:00:00]} dxc5 {[%emt 0:00:13]} 31. Qxc5 {[%emt 0:00:13]} Qxc5 {[%emt 0:01:03]} 32. Bxc5 {[%emt 0:00:05]} Rc7 {[%emt 0:00:47]} 33. Rd5 {[%emt 0:00:21]} Re5 {[%emt 0:01:09]} 34. Rd8+ {[%emt 0:02:16]} Kf7 {[%emt 0:00:04]} 35. Be3 {[%emt 0:00:03]} Re8 {[%emt 0:01:08]} 36. Rd5 {[%emt 0:01:15]} Rb7 {[%emt 0:00:23]} 37. Kg2 {[%emt 0:00:49]} Ke6 {[%emt 0:00:42]} 38. Rhd1 {[%emt 0:00:53]} Be5 {[%emt 0:00:24]} 39. Rc5 {[%emt 0:01:28]} b4 {[%emt 0:00:27]} 40. axb4 {[%emt 0:01:04]} 1/2-1/2